[Event "1000GM Spring Break Schev-C 2024"]
[Site "San Jose"]
[Date "2024.04.04"]
[Round "5.3"]
[White "Zuluaga Mancilla, Cesar"]
[Black "Guo, Ethan"]
[Result "1/2-1/2"]
[ECO "D95"]
[WhiteElo "2206"]
[BlackElo "2211"]
[Annotator "RC"]
[PlyCount "84"]
[EventDate "2024.03.28"]
[EventType "schev"]
[EventCountry "USA"]
[SourceTitle "playchess.com"]
[Source "ChessBase"]
[SourceQuality "1"]
[TimeControl "5400+30"]

1. d4 {[%emt 0:06:25]} Nf6 {[%emt 0:00:00]} 2. Nf3 {[%emt 0:00:09]} g6 {[%emt 0:00:08]} 3. c4 {[%emt 0:00:07]} Bg7 {[%emt 0:00:11]} 4. Nc3 {[%emt 0:00:07]} d5 {[%emt 0:00:04]} 5. e3 {[%emt 0:01:23]} O-O {[%emt 0:00:13]} 6. Qb3 {[%emt 0:00:09]} e6 {[%emt 0:00:05]} 7. Be2 {[%emt 0:00:43]} Nc6 {[%emt 0:00:05]} 8. Qc2 {[%emt 0:03:44]} dxc4 {[%emt 0:11:00]} 9. Bxc4 {[%emt 0:00:08]} Nb4 {[%emt 0:00:18]} 10. Qb3 {[%emt 0:00:52]} c5 {[%emt 0:00:19]} 11. O-O {[%emt 0:05:18]} cxd4 {[%emt 0:00:15]} 12. Nxd4 {[%emt 0:00:22]} Nbd5 {[%emt 0:03:24]} 13. Rd1 {[%emt 0:13:21]} Nxc3 {[%emt 0:00:18]} 14. bxc3 {[%emt 0:00:09]} Qa5 {[%emt 0:04:53]} 15. Ba3 {[%emt 0:00:28]} Rd8 {[%emt 0:00:40]} 16. Bb4 {[%emt 0:03:58]} Qb6 {[%emt 0:03:06]} 17. Qa3 {[%emt 0:06:53]} Bf8 {[%emt 0:00:46]} 18. Bxf8 {[%emt 0:06:59]} Rxf8 {[%emt 0:00:07]} 19. Rab1 {[%emt 0:06:33]} Qc7 {[%emt 0:00:30]} 20. Be2 {[%emt 0:00:01]} Ne4 {[%emt 0:05:27]} 21. Nb5 {[%emt 0:09:01]} Qc5 {[%emt 0:00:12]} 22. Qa4 {[%emt 0:02:54]} Nxc3 {[%emt 0:01:34]} 23. Nxc3 {[%emt 0:00:13]} Qxc3 {[%emt 0:00:06]} 24. Bf3 {[%emt 0:00:01]} a6 {[%emt 0:00:54]} 25. Bxb7 {[%emt 0:00:56]} Bxb7 {[%emt 0:00:12]} 26. Rxb7 {[%emt 0:00:04]} Rad8 {[%emt 0:00:13]} 27. Rdb1 {[%emt 0:04:33]} Rd2 {[%emt 0:00:58]} 28. Qxa6 {[%emt 0:05:24]} Qc2 {[%emt 0:00:29]} 29. Qf1 {[%emt 0:06:53]} Rfd8 {[%emt 0:01:15]} 30. Re1 {[%emt 0:02:55]} Kg7 {[%emt 0:00:55]} 31. Rbb1 {[%emt 0:00:27]} Qxa2 {[%emt 0:00:12]} 32. Rbd1 {[%emt 0:00:56]} Qc2 {[%emt 0:00:14]} 33. Rxd2 {[%emt 0:00:05]} Rxd2 {[%emt 0:00:22]} 34. g3 {[%emt 0:00:04]} h5 {[%emt 0:00:25]} 35. h4 {[%emt 0:00:06]} e5 {[%emt 0:01:41]} 36. Rc1 {[%emt 0:01:38]} Qb2 {[%emt 0:00:13]} 37. Rb1 {[%emt 0:00:06]} Qc2 {[%emt 0:00:06]} 38. Rc1 {[%emt 0:00:04]} Qf5 {[%emt 0:00:14]} 39. Qg2 {[%emt 0:01:48]} Re2 {[%emt 0:00:19]} 40. Qf1 {[%emt 0:00:49]} Qf3 {[%emt 0:00:18]} 41. Re1 {[%emt 0:00:24]} Rd2 {[%emt 0:00:18]} 42. Qg2 {[%emt 0:00:12]} Qxg2+ {[%emt 0:00:32]} 1/2-1/2

[Event "1000GM Spring Break Schev-C 2024"]
[Site "San Jose"]
[Date "2024.04.04"]
[Round "5.4"]
[White "Guo, Andrew"]
[Black "Figueredo Losada, Leonel"]
[Result "1/2-1/2"]
[ECO "D07"]
[WhiteElo "2215"]
[BlackElo "2323"]
[Annotator "RC"]
[PlyCount "99"]
[EventDate "2024.03.28"]
[EventType "schev"]
[EventCountry "USA"]
[SourceTitle "playchess.com"]
[Source "ChessBase"]
[SourceQuality "1"]
[TimeControl "5400+30"]

1. d4 {[%emt 0:00:53]} d5 {[%emt 0:04:02]} 2. c4 {[%emt 0:00:14]} dxc4 {[%emt 0:00:03]} 3. Nf3 {[%emt 0:00:07]} Nf6 {[%emt 0:00:04]} 4. e3 {[%emt 0:00:15]} Bg4 {[%emt 0:00:14]} 5. Bxc4 {[%emt 0:00:44]} e6 {[%emt 0:00:04]} 6. O-O {[%emt 0:00:42]} Bd6 {[%emt 0:02:33]} 7. Nc3 {[%emt 0:00:54]} Nc6 {[%emt 0:00:05]} 8. Be2 {[%emt 0:04:00]} O-O {[%emt 0:00:14]} 9. h3 {[%emt 0:07:08]} Bh5 {[%emt 0:00:06]} 10. Qa4 {[%emt 0:01:54]} a6 {[%emt 0:03:56]} 11. a3 {[%emt 0:09:41]} h6 {[%emt 0:13:08]} 12. Rd1 {[%emt 0:05:29]} Qe7 {[%emt 0:01:06]} 13. Qc2 {[%emt 0:09:25]} Rad8 {[%emt 1:11:25]} 14. Nh4 {[%emt 0:17:22]} Bxe2 {[%emt 0:00:00]} 15. Nxe2 {[%emt 0:00:11]} Nh5 {[%emt 0:00:00]} 16. Nf3 {[%emt 0:01:10]} f5 {[%emt 0:00:00]} 17. Nc3 {[%emt 0:01:34]} Kh8 {[%emt 0:00:00]} 18. e4 {[%emt 0:01:49]} e5 {[%emt 0:00:00]} 19. dxe5 {[%emt 0:06:56]} Nxe5 {[%emt 0:00:00]} 20. Qe2 {[%emt 0:14:25]} f4 {[%emt 0:00:00]} 21. Bd2 {[%emt 0:07:11]} c6 {[%emt 0:00:00]} 22. Be1 {[%emt 0:01:35]} Nxf3+ {[%emt 0:00:00]} 23. Qxf3 {[%emt 0:00:07]} Nf6 {[%emt 0:00:00]} 24. Rd4 {[%emt 0:02:09]} Be5 {[%emt 0:00:00]} 25. Rxd8 {[%emt 0:00:10]} Rxd8 {[%emt 0:00:00]} 26. Rd1 {[%emt 0:00:43]} Rxd1 {[%emt 0:00:00]} 27. Nxd1 {[%emt 0:00:18]} c5 {[%emt 0:00:00]} 28. Bc3 {[%emt 0:02:27]} b5 {[%emt 0:00:00]} 29. Qd3 {[%emt 0:01:21]} c4 {[%emt 0:00:00]} 30. Qc2 {[%emt 0:00:22]} Qc5 {[%emt 0:00:57]} 31. Bxe5 {[%emt 0:03:07]} Qxe5 {[%emt 0:00:03]} 32. Nc3 {[%emt 0:00:12]} a5 {[%emt 0:00:26]} 33. Qd2 {[%emt 0:00:59]} b4 {[%emt 0:01:55]} 34. axb4 {[%emt 0:00:08]} axb4 {[%emt 0:00:03]} 35. Na2 {[%emt 0:00:16]} Qxe4 {[%emt 0:03:23]} 36. Nxb4 {[%emt 0:00:08]} f3 {[%emt 0:00:10]} 37. gxf3 {[%emt 0:00:30]} Qxf3 {[%emt 0:00:03]} 38. Qc3 {[%emt 0:00:07]} Qe4 {[%emt 0:00:44]} 39. Qd2 {[%emt 0:00:17]} Qf5 {[%emt 0:00:48]} 40. Qe2 {[%emt 0:01:34]} Ne4 {[%emt 0:00:31]} 41. Kg2 {[%emt 0:00:32]} h5 {[%emt 0:01:23]} 42. Qe3 {[%emt 0:00:41]} Qg6+ {[%emt 0:00:16]} 43. Kf1 {[%emt 0:00:28]} Nf6 {[%emt 0:04:18]} 44. Qc3 {[%emt 0:00:31]} Qe4 {[%emt 0:00:00]} 45. Qc2 {[%emt 0:00:40]} Qh1+ {[%emt 0:00:00]} 46. Ke2 {[%emt 0:00:01]} Qxh3 {[%emt 0:00:00]} 47. Qxc4 {[%emt 0:00:02]} Qf5 {[%emt 0:00:00]} 48. Nd3 {[%emt 0:00:04]} Qh3 {[%emt 0:02:30]} 49. Nb4 {[%emt 0:03:27]} h4 {[%emt 0:00:30]} 50. Nd3 {[%emt 0:00:30]} 1/2-1/2

[Event "1000GM Spring Break Schev-C 2024"]
[Site "San Jose"]
[Date "2024.04.04"]
[Round "5.5"]
[White "Wang, Jeffery"]
[Black "Jimenez Garcia, Emmanuel"]
[Result "1-0"]
[ECO "B00"]
[WhiteElo "2056"]
[BlackElo "2421"]
[Annotator "TA"]
[PlyCount "69"]
[EventDate "2024.03.28"]
[EventType "schev"]
[EventCountry "USA"]
[SourceTitle "playchess.com"]
[Source "ChessBase"]
[SourceQuality "1"]
[TimeControl "5400+30"]

{[%evp 9,69,57,77,55,47,53,35,36,47,38,36,31,31,36,41,28,54,66,62,61,77,57,79,61,77,56,89,80,87,37,62,-54,0,0,0,-10,118,112,121,97,89,0,-7,-21,109,85,181,170,290,293,408,427,599,591,594,590,1116,1114,2025,-195,2247,2139]} 1. e4 {[%emt 0:00:02]} b6 {[%emt 0:03:58]} 2. d4 {[%emt 0:00:11]} Bb7 {[%emt 0:00:04]} 3. Bd3 {[%emt 0:00:07]} d6 {[%emt 0:00:06]} 4. Nf3 {[%emt 0:00:59]} Nd7 {[%emt 0:00:05]} 5. O-O {[%emt 0:01:59]} e5 {[%emt 0:00:20]} 6. Re1 {[%emt 0:03:09]} Ngf6 {[%emt 0:01:09]} 7. Nbd2 {[%emt 0:01:51]} Be7 {[%emt 0:04:34]} 8. c3 {[%emt 0:04:15][%cal Bc2c3,Bc3d4,Bd4d5][%mdl 32] White is slightly better.} O-O {[%emt 0:00:45]} 9. Nf1 {[%emt 0:00:30]} Re8 {[%emt 0:01:16]} 10. Ng3 {[%emt 0:01:45]} Bf8 {[%emt 0:00:07][%cal Be7f8,Bf8g7,Bg7h8][%mdl 32]} 11. h3 {[%emt 0:02:54]} a6 {[%emt 0:01:27]} 12. a4 {[%emt 0:03:42]} exd4 {[%emt 0:11:36]} 13. cxd4 {[%emt 0:01:06]} c5 {[%emt 0:00:12]} 14. d5 {[%emt 0:03:53]} g6 {[%emt 0:00:31]} 15. Bg5 {[%emt 0:02:14]} Bg7 {[%emt 0:01:30]} 16. Qd2 {[%emt 0:02:56]} Qc7 {[%emt 0:00:32]} 17. Bc4 {[%emt 0:04:53]} Bc8 {[%emt 0:03:04]} 18. Bh6 {[%emt 0:02:57]} Bh8 {[%emt 0:03:39]} 19. Qg5 {[%emt 0:07:11]} (19. Bf4 $16) 19... Rb8 $1 $14 {[%emt 0:21:33]} 20. Nf5 {[%emt 0:10:07]} (20. Qh4 $14) 20... Ne5 {[%emt 0:04:57]} 21. Nxe5 {[%emt 0:01:28]} Rxe5 {[%emt 0:00:02]} 22. f4 $1 {[%emt 0:01:38]} Rxe4 {[%emt 0:01:56]} (22... Nxe4 23. fxe5 Bxf5 (23... Nxg5 $2 24. exd6 Bd4+ 25. Nxd4 $18) 24. Qh4 Bxe5 25. Rxe4 Bxe4 26. Qxe4 $11) (22... Re8 $1 $11 {remains equal.}) 23. Rxe4 $16 {[%emt 0:07:04]} Bxf5 {[%emt 0:00:24]} 24. Re2 $36 {[%emt 0:01:20][%mdl 2048] White is in control.} b5 {[%emt 0:09:07] [#]} 25. axb5 {[%emt 0:06:47]} (25. Rae1 $1 $16 {[%cal Og5f6] Black must now prevent Qxf6!} Qa5 (25... bxc4 $2 26. Qxf6 Bd7 27. Qe7 $18) 26. Kh2) 25... axb5 $11 {[%emt 0:00:02]} 26. Rae1 $1 {[%emt 0:02:46][%cal Og5f6] Hoping for Qxf6!} Bd7 {[%emt 0:00:02]} (26... bxc4 $2 {is the wrong capture.} 27. Qxf6 Bd7 (27... Qd7 $2 28. Qxd6 Qxd6 29. Re8+ $18) 28. Qe7 $18) (26... Qa5 $1 $11 {keeps the balance.} 27. Ba2 (27. g4 $2 Be4 $19) 27... Bd3 (27... Qxa2 $2 28. Qxf6 $18)) 27. Bd3 $16 {[%emt 0:01:49] And now f5 would win.} c4 {[%emt 0:02:11] [#]} (27... Qd8 $16) 28. Bf5 $1 $18 {[%emt 0:02:07] Active counter play!} Qc8 {[%emt 0:06:23]} (28... b4 {was necessary.}) 29. Bxd7 {[%emt 0:02:32]} Nxd7 {[%emt 0:00:02]} 30. Qe7 {[%emt 0:02:49]} Qc5+ {[%emt 0:01:01]} (30... Bd4+ $142 31. Kh2 Bg7) 31. Kh1 {[%emt 0:01:59][%cal Oe7e8] Qe8+! would kill now.} Nf8 {[%emt 0:00:08] [#]} 32. f5 $1 {[%emt 0:02:25][%cal Bf4f5,Bf5f6][%mdl 544] f6 is the strong threat.} Qxd5 {[%emt 0:02:15]} (32... c3 33. Bxf8) 33. f6 {[%emt 0:01:03][%cal Oe7f8] Wards off Bg7. Strongly threatening Qxf8+!} Qf5 {[%emt 0:02:42] [#] Black is weak on the dark squares} 34. Qxf8+ $3 {[%emt 0:00:45][%mdl 512]} Rxf8 {[%emt 0:00:17]} 35. Re8 {[%emt 0:00:06] Weighted Error Value: White=0.13 (very precise) /Black=0.43.  Mistake:       	White=3     	Black=5      Inaccurate:     	---       	Black=6      OK:         	White=6     	Black=3      Best:        	White=3     	Black=2      Strong:       	White=3     	Black=1      Brilliant:      	White=1     	---} 1-0